fUSD/lending_fUSD_20250720
["ID","MTS","AMOUNT","RATE_DAILY","PERIOD"]
[373477936,1753019472615,-486.88,0.00019506,2]
[373477937,1753019472625,-2315.41,0.00019506,2]
[373477938,1753019472635,-480.0,0.00019506,2]
[373477939,1753019472645,-480.0,0.00019506,2]
[373477940,1753019472654,-433.92,0.00019506,2]
[373477941,1753019472663,-529.02,0.00019506,2]
[373477942,1753019472672,-1036.06,0.00019506,2]
[373477943,1753019472682,-1025.76,0.00019506,2]
[373477944,1753019472691,-480.0,0.00019506,2]
[373477945,1753019472700,-573.81,0.00019506,2]
[373477946,1753019472710,-802.35,0.00019506,2]
[373477947,1753019472719,-179.16,0.00019506,2]
[373477948,1753019472729,-151.0,0.00019506,2]
[373477949,1753019472739,-151.0,0.00019506,2]
[373477950,1753019472748,-480.0,0.00019506,2]
[373477951,1753019472757,-480.0,0.00019506,2]
[373477952,1753019472767,-480.0,0.00019506,2]
[373477953,1753019472775,-480.0,0.00019506,2]
[373477954,1753019472785,-619.12,0.00019506,2]
[373477955,1753019472794,-480.0,0.00019506,2]
[373477956,1753019472803,-480.0,0.00019506,2]
[373477957,1753019472812,-480.0,0.00019506,2]
[373477958,1753019472822,-480.0,0.00019506,2]
[373477959,1753019472831,-933.84,0.00019506,2]
[373477960,1753019472840,-1899.42,0.00019506,2]
[373477961,1753019472849,-480.0,0.00019506,2]
[373477962,1753019472859,-480.0,0.00019506,2]
[373477963,1753019472868,-1365.37,0.00019506,2]
[373477964,1753019472877,-480.0,0.00019506,2]
[373477965,1753019472886,-480.0,0.00019506,2]
[373477966,1753019472898,-480.0,0.00019506,2]
[373477967,1753019472907,-643.56,0.00019506,2]
[373477968,1753019472916,-320.05851546,0.00019506,2]
[373477969,1753019472925,-480.0,0.00019506,2]
[373477970,1753019472935,-480.0,0.00019506,2]
[373477971,1753019472944,-480.0,0.00019506,2]
[373477972,1753019472953,-480.0,0.00019506,2]
[373477973,1753019472962,-491.14,0.00019506,2]
[373477974,1753019472971,-513.7,0.00019506,2]
[373477975,1753019472980,-480.0,0.00019506,2]
[373477976,1753019472990,-480.0,0.00019506,2]
[373477977,1753019472999,-480.0,0.00019506,2]
[373477978,1753019473008,-742.91,0.00019506,2]
[373477979,1753019473017,-770.53,0.00019506,2]
[373477980,1753019473026,-480.0,0.00019506,2]
[373477981,1753019473035,-380.0,0.00019506,2]
[373477982,1753019473045,-480.0,0.00019506,2]
[373477983,1753019473054,-380.38,0.00019506,2]
[373477984,1753019473063,-380.0,0.00019506,2]
[373477985,1753019473071,-6566.95,0.00019506,2]
[373477986,1753019473080,-480.0,0.00019506,2]
[373477987,1753019473089,-480.0,0.00019506,2]
[373477988,1753019473098,-703.59,0.00019506,2]
[373477989,1753019473107,-559.29,0.00019506,2]
[373477990,1753019473116,-556.16,0.00019506,2]
[373477991,1753019473126,-480.0,0.00019506,2]
[373477992,1753019473134,-480.0,0.00019506,2]
[373477993,1753019473144,-360.0,0.00019506,2]
[373477994,1753019473153,-480.0,0.00019506,2]
[373477995,1753019473161,-480.0,0.00019506,2]
[373477996,1753019473170,-480.0,0.00019506,2]
[373477997,1753019473180,-480.0,0.00019506,2]
[373477998,1753019473189,-480.0,0.00019506,2]
[373477999,1753019473198,-480.0,0.00019506,2]
[373478000,1753019473207,-480.0,0.00019506,2]
[373478001,1753019473216,-480.0,0.00019506,2]
[373478002,1753019473225,-622.75,0.00019506,2]
[373478003,1753019473234,-480.0,0.00019506,2]
[373478004,1753019473243,-507.08,0.00019506,2]
[373478005,1753019473252,-873.97,0.00019506,2]
[373478006,1753019473261,-585.75,0.00019506,2]
[373478007,1753019473270,-652.56,0.00019506,2]
[373478008,1753019473279,-480.0,0.00019506,2]
[373478009,1753019473288,-1133.69,0.00019506,2]
[373478010,1753019473297,-2024.83,0.00019506,2]
[373478011,1753019473306,-360.0,0.00019506,2]
[373478012,1753019473314,-1078.11,0.00019506,2]
[373478013,1753019473323,-480.0,0.00019506,2]
[373478014,1753019473332,-480.0,0.00019506,2]
[373478015,1753019473341,-882.42,0.00019506,2]
[373478016,1753019473350,-562.85,0.00019506,2]
[373478017,1753019473359,-808.63,0.00019506,2]
[373478018,1753019473368,-528.35,0.00019506,2]
[373478019,1753019473377,-480.0,0.00019506,2]
[373478020,1753019473387,-480.0,0.00019506,2]
[373478021,1753019473397,-480.0,0.00019506,2]
[373478022,1753019473407,-481.92,0.00019506,2]
[373478023,1753019473416,-480.0,0.00019506,2]
[373478024,1753019473425,-698.42,0.00019506,2]
[373478025,1753019473435,-480.0,0.00019506,2]
[373478026,1753019473448,-1098.19,0.00019506,2]
[373478027,1753019473460,-151.0,0.00019506,2]
[373478028,1753019473469,-480.0,0.00019506,2]
[373478029,1753019473479,-480.0,0.00019506,2]
[373478030,1753019473489,-480.0,0.00019506,2]
[373478031,1753019473499,-1470.4,0.00019506,2]
[373478032,1753019473509,-480.0,0.00019506,2]
[373478033,1753019473519,-480.0,0.00019506,2]
[373478034,1753019473530,-480.0,0.00019506,2]
[373478035,1753019473539,-480.0,0.00019506,2]
[373478036,1753019473548,-480.0,0.00019506,2]
[373478037,1753019473558,-480.0,0.00019506,2]
[373478038,1753019473567,-480.0,0.00019506,2]
[373478039,1753019473577,-480.0,0.00019506,2]
[373478040,1753019473586,-530.18,0.00019506,2]
[373478041,1753019473595,-480.0,0.00019506,2]
[373478042,1753019473605,-542.4,0.00019506,2]
[373478043,1753019473615,-411.3,0.00019506,2]
[373478044,1753019473625,-2168.69,0.00019506,2]
[373478045,1753019473635,-480.0,0.00019506,2]
[373478046,1753019473645,-480.0,0.00019506,2]
[373478047,1753019473654,-480.0,0.00019506,2]
[373478048,1753019473663,-480.0,0.00019506,2]
[373478049,1753019473674,-810.65,0.00019506,2]
[373478050,1753019473683,-509.75,0.00019506,2]
[373478051,1753019473693,-480.0,0.00019506,2]
[373478052,1753019473703,-480.0,0.00019506,2]
[373478053,1753019473712,-480.0,0.00019506,2]
[373478054,1753019473721,-480.0,0.00019506,2]
[373478055,1753019473730,-1074.62,0.00019506,2]
[373478056,1753019473739,-480.0,0.00019506,2]
[373478057,1753019473748,-480.0,0.00019506,2]
[373478058,1753019473757,-480.0,0.00019506,2]
[373478059,1753019473767,-585.83,0.00019506,2]
[373478060,1753019473776,-488.38,0.00019506,2]
[373478061,1753019473785,-480.0,0.00019506,2]
[373478062,1753019473794,-1248.2,0.00019506,2]
[373478063,1753019473804,-480.0,0.00019506,2]
[373478064,1753019473813,-380.0,0.00019506,2]
[373478065,1753019473822,-1171.8,0.00019506,2]
[373478066,1753019473831,-360.0,0.00019506,2]
[373478067,1753019473840,-480.0,0.00019506,2]
[373478068,1753019473849,-512.42,0.00019506,2]
[373478069,1753019473859,-480.0,0.00019506,2]
[373478070,1753019473868,-480.0,0.00019506,2]
[373478071,1753019473878,-480.0,0.00019506,2]
[373478072,1753019473887,-480.0,0.00019506,2]
[373478073,1753019473897,-480.0,0.00019506,2]
[373478074,1753019473906,-480.0,0.00019506,2]
[373478075,1753019473915,-480.0,0.00019506,2]
[373478076,1753019473924,-480.0,0.00019506,2]
[373478077,1753019473933,-480.0,0.00019506,2]
[373478078,1753019473942,-480.0,0.00019506,2]
[373478079,1753019473952,-480.0,0.00019506,2]
[373478080,1753019473961,-480.0,0.00019506,2]
[373478081,1753019473970,-380.0,0.00019506,2]
[373478082,1753019473979,-480.0,0.00019506,2]
[373478083,1753019473989,-989.68,0.00019506,2]
[373478084,1753019473998,-480.0,0.00019506,2]
[373478085,1753019474007,-480.0,0.00019506,2]
[373478086,1753019474016,-1298.15,0.00019506,2]
[373478087,1753019474025,-480.0,0.00019506,2]
[373478088,1753019474034,-1020.25,0.00019506,2]
[373478089,1753019474044,-480.0,0.00019506,2]
[373478090,1753019474054,-507.62,0.00019506,2]
[373478091,1753019474063,-523.15,0.00019506,2]
[373478092,1753019474072,-480.0,0.00019506,2]
[373478093,1753019474081,-294.18083,0.00019506,2]
[373478094,1753019474090,-3702.53,0.00019506,2]
[373478095,1753019474099,-556.53,0.00019506,2]
[373478096,1753019474109,-480.0,0.00019506,2]
[373478097,1753019474118,-458.06,0.00019506,2]
[373478098,1753019474127,-480.0,0.00019506,2]
[373478099,1753019474135,-294.18083,0.00019506,2]
[373478100,1753019474147,-480.0,0.00019506,2]
[373478101,1753019474155,-380.0,0.00019506,2]
[373478102,1753019474164,-1136.01,0.00019506,2]
[373478103,1753019474173,-480.0,0.00019506,2]
[373478104,1753019474182,-480.0,0.00019506,2]
[373478105,1753019474191,-1095.88,0.00019506,2]
[373478106,1753019474201,-360.0,0.00019506,2]
[373478107,1753019474210,-480.0,0.00019506,2]
[373478108,1753019474219,-480.0,0.00019506,2]
[373478109,1753019474228,-489.5,0.00019506,2]
[373478110,1753019474238,-480.0,0.00019506,2]
[373478111,1753019474247,-1651.63,0.00019506,2]
[373478112,1753019474256,-480.0,0.00019506,2]
[373478113,1753019474266,-480.0,0.00019506,2]
[373478114,1753019474275,-480.0,0.00019506,2]
[373478115,1753019474284,-480.0,0.00019506,2]
[373478116,1753019474293,-151.0,0.00019506,2]
[373478117,1753019474303,-151.0,0.00019506,2]
[373478118,1753019474312,-480.0,0.00019506,2]
[373478119,1753019474321,-1608.55,0.00019506,2]
[373478120,1753019474331,-480.0,0.00019506,2]
[373478121,1753019474340,-480.0,0.00019506,2]
[373478122,1753019474350,-480.0,0.00019506,2]
[373478123,1753019474359,-480.0,0.00019506,2]
[373478124,1753019474369,-480.0,0.00019506,2]
[373478125,1753019474379,-3923.46,0.00019506,2]
[373478126,1753019474388,-2237.11,0.00019506,2]
[373478127,1753019474400,-480.0,0.00019506,2]
[373478128,1753019474410,-705.3,0.00019506,2]
[373478129,1753019474421,-480.0,0.00019506,2]
[373478130,1753019474431,-834.1,0.00019506,2]
[373478131,1753019474441,-480.0,0.00019506,2]
[373478132,1753019474453,-480.0,0.00019506,2]
[373478133,1753019474462,-836.85,0.00019506,2]
[373478134,1753019474472,-380.0,0.00019506,2]
[373478135,1753019474482,-256.103402,0.00019506,2]
[373478136,1753019474493,-480.0,0.00019506,2]
[373478137,1753019474583,-256.103402,0.00019506,2]
[373478138,1753019474630,-480.0,0.00019506,2]
[373478139,1753019474640,-480.0,0.00019506,2]
[373478140,1753019474651,-480.0,0.00019506,2]
[373478141,1753019474661,-480.0,0.00019506,2]
[373478142,1753019474672,-480.0,0.00019506,2]
[373478143,1753019474682,-480.0,0.00019506,2]
[373478144,1753019474692,-480.0,0.00019506,2]
[373478145,1753019474702,-256.103402,0.00019506,2]
[373478146,1753019474712,-256.103402,0.00019506,2]
[373478147,1753019474722,-434.369889,0.00019506,2]
[373478148,1753019474731,-480.0,0.00019506,2]
[373478149,1753019474741,-893.54,0.00019506,2]
[373478150,1753019474751,-434.369889,0.00019506,2]
[373478151,1753019474760,-971.86,0.00019506,2]
[373478152,1753019474770,-697.5,0.00019506,2]
[373478153,1753019474779,-525.44,0.00019506,2]
[373478154,1753019474789,-480.0,0.00019506,2]
[373478155,1753019474798,-434.369889,0.00019506,2]
[373478156,1753019474807,-480.0,0.00019506,2]
[373478157,1753019474817,-434.369889,0.00019506,2]
[373478158,1753019474826,-480.0,0.00019506,2]
[373478159,1753019474835,-480.0,0.00019506,2]
[373478160,1753019474845,-480.0,0.00019506,2]
[373478161,1753019474854,-480.0,0.00019506,2]
[373478162,1753019474864,-480.0,0.00019506,2]
[373478163,1753019474873,-480.0,0.00019506,2]
[373478164,1753019474883,-730.73,0.00019506,2]
[373478165,1753019474893,-658.53,0.00019506,2]
[373478166,1753019474903,-480.0,0.00019506,2]
[373478167,1753019474913,-483.9,0.00019506,2]
[373478168,1753019474922,-163.275317,0.00019506,2]
[373478169,1753019474932,-480.0,0.00019506,2]
[373478170,1753019474941,-1394.43,0.00019506,2]
[373478171,1753019474951,-480.0,0.00019506,2]
[373478172,1753019474961,-480.0,0.00019506,2]
[373478173,1753019474971,-1146.42,0.00019506,2]
[373478174,1753019474980,-163.275317,0.00019506,2]
[373478175,1753019474990,-480.0,0.00019506,2]
[373478176,1753019474999,-244.88,0.00019506,2]
[373478177,1753019475009,-480.0,0.00019506,2]
[373478178,1753019475018,-480.0,0.00019506,2]
[373478179,1753019475028,-480.0,0.00019506,2]
[373478180,1753019475038,-524.05,0.00019506,2]
[373478181,1753019475047,-1227.36,0.00019506,2]
[373478182,1753019475057,-747.03,0.00019506,2]
[373478183,1753019475066,-623.28,0.00019506,2]
[373478184,1753019475076,-480.0,0.00019506,2]
[373478185,1753019475086,-480.0,0.00019506,2]
[373478186,1753019475095,-837.4,0.00019506,2]
[373478187,1753019475105,-480.0,0.00019506,2]
[373478188,1753019475115,-746.83,0.00019506,2]
[373478189,1753019475124,-4486.95,0.00019506,2]
[373478190,1753019475134,-6250.65,0.00019506,2]
[373478191,1753019475144,-480.0,0.00019506,2]
[373478192,1753019475154,-480.0,0.00019506,2]
[373478193,1753019475164,-480.0,0.00019506,2]
[373478194,1753019475173,-480.0,0.00019506,2]
[373478195,1753019475183,-482.81,0.00019506,2]
[373478196,1753019475192,-510.48,0.00019506,2]
[373478197,1753019475202,-480.0,0.00019506,2]
[373478198,1753019475212,-690.69,0.00019506,2]
[373478199,1753019475221,-480.0,0.00019506,2]
[373478200,1753019475231,-480.0,0.00019506,2]
[373478201,1753019475240,-480.0,0.00019506,2]
[373478202,1753019475249,-480.0,0.00019506,2]
[373478203,1753019475259,-480.0,0.00019506,2]
[373478204,1753019475268,-480.0,0.00019506,2]
[373478205,1753019475277,-480.0,0.00019506,2]
[373478206,1753019475286,-562.45363824,0.00019506,2]
[373478207,1753019475295,-1144.78,0.00019506,2]
[373478208,1753019475305,-480.0,0.00019506,2]
[373478209,1753019475315,-569.37,0.00019506,2]
[373478210,1753019475324,-480.0,0.00019506,2]
[373478211,1753019475334,-480.0,0.00019506,2]
[373478212,1753019475343,-480.0,0.00019506,2]
[373478213,1753019475352,-1957.62,0.00019506,2]
[373478214,1753019475362,-480.0,0.00019506,2]
[373478215,1753019475371,-480.0,0.00019506,2]
[373478216,1753019475380,-480.0,0.00019506,2]
[373478217,1753019475390,-480.0,0.00019506,2]
[373478218,1753019475401,-480.0,0.00019506,2]
[373478219,1753019475411,-480.0,0.00019506,2]
[373478220,1753019475421,-480.0,0.00019506,2]
[373478221,1753019475431,-480.0,0.00019506,2]
[373478222,1753019475442,-480.0,0.00019506,2]
[373478223,1753019475454,-480.0,0.00019506,2]
[373478224,1753019475464,-480.0,0.00019506,2]
[373478225,1753019475473,-689.85,0.00019506,2]
[373478226,1753019475483,-738.41,0.00019506,2]
[373478227,1753019475493,-480.0,0.00019506,2]
[373478228,1753019475502,-480.0,0.00019506,2]
[373478229,1753019475512,-480.0,0.00019506,2]
[373478230,1753019475523,-480.0,0.00019506,2]
[373478231,1753019475533,-480.0,0.00019506,2]
[373478232,1753019475543,-480.0,0.00019506,2]
[373478233,1753019475553,-668.36,0.00019506,2]
[373478234,1753019475562,-1143.0,0.00019506,2]
[373478235,1753019475572,-480.0,0.00019506,2]
[373478236,1753019475582,-932.37,0.00019506,2]
[373478237,1753019475592,-2985.1,0.00019506,2]
[373478238,1753019475602,-480.0,0.00019506,2]
[373478239,1753019475612,-480.0,0.00019506,2]
[373478240,1753019475622,-480.0,0.00019506,2]
[373478241,1753019475631,-480.0,0.00019506,2]
[373478242,1753019475642,-939.17,0.00019506,2]
[373478243,1753019475653,-480.0,0.00019506,2]
[373478244,1753019475662,-1000.0,0.00019506,2]
[373478245,1753019475672,-480.0,0.00019506,2]
[373478246,1753019475682,-1924.75,0.00019506,2]
[373478247,1753019475692,-480.0,0.00019506,2]
[373478248,1753019475702,-300.0,0.00019506,2]
[373478249,1753019475712,-480.0,0.00019506,2]
[373478250,1753019475722,-527.35,0.00019506,2]
[373478251,1753019475731,-480.0,0.00019506,2]
[373478252,1753019475742,-601.3,0.00019506,2]
[373478253,1753019475751,-1898.09,0.00019506,2]
[373478254,1753019475761,-3502.66,0.00019506,2]
[373478255,1753019475771,-278.59822343,0.00019506,2]
[373478256,1753019475783,-480.0,0.00019506,2]
[373478257,1753019475793,-480.0,0.00019506,2]
[373478258,1753019475804,-1159.856952,0.00019506,2]
[373478259,1753019475813,-1159.856952,0.00019506,2]
[373478260,1753019475823,-480.0,0.00019506,2]
[373478261,1753019475834,-480.0,0.00019506,2]
[373478262,1753019475843,-480.0,0.00019506,2]
[373478263,1753019475853,-986.11,0.00019506,2]
[373478264,1753019475862,-480.0,0.00019506,2]
[373478265,1753019475872,-1159.856952,0.00019506,2]
[373478266,1753019475881,-480.0,0.00019506,2]
[373478267,1753019475890,-1159.856952,0.00019506,2]
[373478268,1753019475900,-480.0,0.00019506,2]
[373478269,1753019475909,-947.48,0.00019506,2]
[373478270,1753019475919,-183.79666432,0.00019506,2]
[373478271,1753019475930,-415.640667,0.00019506,2]
[373478272,1753019475940,-1553.54,0.00019506,2]
[373478273,1753019475949,-415.640667,0.00019506,2]
[373478274,1753019475959,-480.0,0.00019506,2]
[373478275,1753019475970,-480.0,0.00019506,2]
[373478276,1753019475979,-480.0,0.00019506,2]
[373478277,1753019475989,-480.0,0.00019506,2]
[373478278,1753019475998,-480.0,0.00019506,2]
[373478279,1753019476008,-1483.86,0.00019506,2]
[373478280,1753019476018,-1070.15,0.00019506,2]
[373478281,1753019476028,-480.0,0.00019506,2]
[373478282,1753019476038,-415.640667,0.00019506,2]
[373478283,1753019476049,-480.0,0.00019506,2]
[373478284,1753019476058,-415.640667,0.00019506,2]
[373478285,1753019476067,-480.0,0.00019506,2]
[373478286,1753019476077,-480.0,0.00019506,2]
[373478287,1753019476087,-480.0,0.00019506,2]
[373478288,1753019476097,-532.55,0.00019506,2]
[373478289,1753019476107,-1553.37,0.00019506,2]
[373478290,1753019476117,-480.0,0.00019506,2]
[373478291,1753019476127,-260.964108,0.00019506,2]
[373478292,1753019476136,-480.0,0.00019506,2]
[373478293,1753019476146,-260.964108,0.00019506,2]
[373478294,1753019476156,-480.0,0.00019506,2]
[373478295,1753019476166,-480.0,0.00019506,2]
[373478296,1753019476175,-480.0,0.00019506,2]
[373478297,1753019476187,-480.0,0.00019506,2]
[373478298,1753019476197,-480.0,0.00019506,2]
[373478299,1753019476208,-260.964108,0.00019506,2]
[373478300,1753019476218,-260.964108,0.00019506,2]
[373478301,1753019476228,-480.0,0.00019506,2]
[373478302,1753019476237,-480.0,0.00019506,2]
[373478303,1753019476247,-480.0,0.00019506,2]
[373478304,1753019476258,-480.0,0.00019506,2]
[373478305,1753019476268,-480.0,0.00019506,2]
[373478306,1753019476277,-480.0,0.00019506,2]
[373478307,1753019476287,-480.0,0.00019506,2]
[373478308,1753019476299,-480.0,0.00019506,2]
[373478309,1753019476308,-151.0,0.00019506,2]
[373478310,1753019476318,-480.0,0.00019506,2]
[373478311,1753019476328,-151.0,0.00019506,2]
[373478312,1753019476337,-1194.6,0.00019506,2]
[373478313,1753019476347,-828.22,0.00019506,2]
[373478314,1753019476357,-480.0,0.00019506,2]
[373478315,1753019476366,-2119.05,0.00019506,2]
[373478316,1753019476376,-1794.49,0.00019506,2]
[373478317,1753019476386,-480.0,0.00019506,2]
[373478318,1753019476395,-1041.33,0.00019506,2]
[373478319,1753019476407,-151.0,0.00019506,2]
[373478320,1753019476416,-1596.73,0.00019506,2]
[373478321,1753019476429,-227.046865,0.00019506,2]
[373478322,1753019476439,-480.0,0.00019506,2]
[373478323,1753019476452,-480.0,0.00019506,2]
[373478324,1753019476461,-480.0,0.00019506,2]
[373478325,1753019476471,-480.0,0.00019506,2]
[373478326,1753019476483,-4638.84,0.00019506,2]
[373478327,1753019476492,-630.93,0.00019506,2]
[373478328,1753019476502,-480.0,0.00019506,2]
[373478329,1753019476512,-480.0,0.00019506,2]
[373478330,1753019476522,-480.0,0.00019506,2]
[373478331,1753019476533,-480.0,0.00019506,2]
[373478332,1753019476542,-480.0,0.00019506,2]
[373478333,1753019476551,-480.0,0.00019506,2]
[373478334,1753019476561,-1777.66,0.00019506,2]
[373478335,1753019476571,-151.0,0.00019506,2]
[373478336,1753019476580,-151.0,0.00019506,2]
[373478337,1753019476589,-556.83,0.00019506,2]
[373478338,1753019476599,-1897.84,0.00019506,2]
[373478339,1753019476609,-1256.18,0.00019506,2]
[373478340,1753019476618,-2882.58,0.00019506,2]
[373478341,1753019476628,-480.0,0.00019506,2]
[373478342,1753019476638,-979.84,0.00019506,2]
[373478343,1753019476647,-480.0,0.00019506,2]
[373478344,1753019476657,-480.0,0.00019506,2]
[373478345,1753019476667,-482.94,0.00019506,2]
[373478346,1753019476676,-707.99,0.00019506,2]
[373478347,1753019476685,-480.0,0.00019506,2]
[373478348,1753019476695,-574.55,0.00019506,2]
[373478349,1753019476705,-38134.22,0.00019506,2]
[373478350,1753019476715,-480.0,0.00019506,2]
[373478351,1753019476724,-480.0,0.00019506,2]
[373478352,1753019476734,-151.0,0.00019506,2]
[373478353,1753019476744,-151.0,0.00019506,2]
[373478354,1753019476754,-480.0,0.00019506,2]
[373478355,1753019476763,-1106.08,0.00019506,2]
[373478356,1753019477062,-480.0,0.00019506,2]
[373478357,1753019477073,-480.0,0.00019506,2]
[373478358,1753019477083,-480.0,0.00019506,2]
[373478359,1753019477092,-480.0,0.00019506,2]
[373478360,1753019477102,-480.0,0.00019506,2]
[373478361,1753019477111,-2593.99,0.00019506,2]
[373478362,1753019477121,-773.09,0.00019506,2]
[373478363,1753019477130,-480.0,0.00019506,2]
[373478364,1753019477140,-3225.28,0.00019506,2]
[373478365,1753019477149,-1974.09,0.00019506,2]
[373478366,1753019477160,-480.0,0.00019506,2]
[373478367,1753019477169,-10449.6,0.00019506,2]
[373478368,1753019477179,-2698.38,0.00019506,2]
[373478369,1753019477189,-480.0,0.00019506,2]
[373478370,1753019477198,-480.0,0.00019506,2]
[373478371,1753019477208,-3171.67,0.00019506,2]
[373478372,1753019477218,-480.0,0.00019506,2]
[373478373,1753019477228,-1260.52,0.00019506,2]
[373478374,1753019477239,-480.0,0.00019506,2]
[373478375,1753019477249,-480.0,0.00019506,2]
[373478376,1753019477259,-480.0,0.00019506,2]
[373478377,1753019477269,-480.0,0.00019506,2]
[373478378,1753019477280,-2207.57,0.00019506,2]
[373478379,1753019477289,-480.0,0.00019506,2]
[373478380,1753019477301,-480.0,0.00019506,2]
[373478381,1753019477311,-480.0,0.00019506,2]
[373478382,1753019477321,-480.0,0.00019506,2]
[373478383,1753019477330,-480.0,0.00019506,2]
[373478384,1753019477340,-1908.42,0.00019506,2]
[373478385,1753019477349,-480.0,0.00019506,2]
[373478386,1753019477359,-480.0,0.00019506,2]
[373478387,1753019477368,-4837.24,0.00019506,2]
[373478388,1753019477378,-534.75,0.00019506,2]
[373478389,1753019477388,-480.0,0.00019506,2]
[373478390,1753019477399,-480.0,0.00019506,2]
[373478391,1753019477410,-480.0,0.00019506,2]
[373478392,1753019477419,-480.0,0.00019506,2]
[373478393,1753019477428,-480.0,0.00019506,2]
[373478394,1753019477438,-480.0,0.00019506,2]
[373478395,1753019477449,-480.0,0.00019506,2]
[373478396,1753019477464,-480.0,0.00019506,2]
[373478397,1753019477474,-360.0,0.00019506,2]
[373478398,1753019477483,-3925.2,0.00019506,2]
[373478399,1753019477494,-480.0,0.00019506,2]
[373478400,1753019477504,-480.0,0.00019506,2]
[373478401,1753019477514,-1106.38,0.00019506,2]
[373478402,1753019477529,-480.0,0.00019506,2]
[373478403,1753019477540,-480.0,0.00019506,2]
[373478404,1753019477549,-480.0,0.00019506,2]
[373478405,1753019477559,-1549.05,0.00019506,2]
[373478406,1753019477568,-480.0,0.00019506,2]
[373478407,1753019477579,-675.33,0.00019506,2]
[373478408,1753019477588,-1337.84,0.00019506,2]
[373478409,1753019477600,-480.0,0.00019506,2]
[373478410,1753019477615,-480.0,0.00019506,2]
[373478411,1753019477628,-920.58,0.00019506,2]
[373478412,1753019477644,-480.0,0.00019506,2]
[373478413,1753019477656,-4186.58,0.00019506,2]
[373478414,1753019477666,-480.0,0.00019506,2]
[373478415,1753019477675,-480.0,0.00019506,2]
[373478416,1753019477685,-575.28,0.00019506,2]
[373478417,1753019477695,-480.0,0.00019506,2]
[373478418,1753019477705,-480.0,0.00019506,2]
[373478419,1753019477714,-343.22770198,0.00019506,2]
[373478420,1753019477724,-480.0,0.00019506,2]
[373478421,1753019477734,-2912.14,0.00019506,2]
[373478422,1753019477745,-406.74707516,0.00019506,2]
[373478423,1753019477755,-480.0,0.00019506,2]
[373478424,1753019477766,-480.0,0.00019506,2]
[373478425,1753019477776,-480.0,0.00019506,2]
[373478426,1753019477787,-151.0,0.00019506,2]
[373478427,1753019477797,-151.0,0.00019506,2]
[373478428,1753019477807,-480.0,0.00019506,2]
[373478429,1753019477817,-1601.32,0.00019506,2]
[373478430,1753019477827,-480.0,0.00019506,2]
[373478431,1753019477838,-576.72686398,0.00019506,2]
[373478432,1753019477848,-1575.77,0.00019506,2]
[373478433,1753019477858,-1649.03,0.00019506,2]
[373478434,1753019477867,-501.28,0.00019506,2]
[373478435,1753019477878,-480.0,0.00019506,2]